[Event "Titled Tuesday Blitz July 25 Late 2023"]
[White "Vlassov, Nikolai"]
[Black "Gerbelli Neto, Eduardo"]
[WhiteFideId "4103360"]
[BlackFideId "2103281"]
[WhiteElo "2559"]
[BlackElo "2371"]
[Result "1-0"]
[Round "5"]
[TimeControl "180+2"]
[Date "2023.07.25"]
[WhiteClock "0:00:51"]
[BlackClock "0:00:13"]
[Board "120"]

1. e4 {[%clk 0:03:00]}  e5 {[%clk 0:02:58]} 2. Bc4 {[%clk 0:03:00]}  Nf6 {[%clk 0:02:57]} 3. d3 {[%clk 0:03:00]}  Nc6 {[%clk 0:02:57]} 4. Nf3 {[%clk 0:03:00]}  Bc5 {[%clk 0:02:56]} 5. Bg5 {[%clk 0:03:00]}  d6 {[%clk 0:02:56]} 6. Nc3 {[%clk 0:03:00]}  h6 {[%clk 0:02:55]} 7. Bh4 {[%clk 0:03:00]}  Be6 {[%clk 0:02:44]} 8. Nd2 {[%clk 0:02:59]}  g5 {[%clk 0:02:41]} 9. Bg3 {[%clk 0:02:59]}  h5 {[%clk 0:02:31]} 10. h4 {[%clk 0:02:58]}  g4 {[%clk 0:02:22]} 11. Nd5 {[%clk 0:02:58]}  Na5 {[%clk 0:02:11]} 12. O-O {[%clk 0:02:22]}  c6 {[%clk 0:02:05]} 13. Nxf6+ {[%clk 0:02:12]}  Qxf6 {[%clk 0:02:06]} 14. Bxe6 {[%clk 0:02:12]}  fxe6 {[%clk 0:01:58]} 15. c3 {[%clk 0:02:11]}  O-O {[%clk 0:01:27]} 16. b4 {[%clk 0:02:11]}  Bb6 {[%clk 0:01:28]} 17. bxa5 {[%clk 0:02:05]}  Bxa5 {[%clk 0:01:28]} 18. Qb3 {[%clk 0:02:04]}  b5 {[%clk 0:01:28]} 19. a4 {[%clk 0:02:04]}  a6 {[%clk 0:01:27]} 20. axb5 {[%clk 0:02:04]}  axb5 {[%clk 0:01:28]} 21. Ra2 {[%clk 0:02:00]}  Bb6 {[%clk 0:01:23]} 22. Rxa8 {[%clk 0:01:40]}  Rxa8 {[%clk 0:01:24]} 23. c4 {[%clk 0:01:40]}  Rb8 {[%clk 0:01:09]} 24. cxb5 {[%clk 0:01:39]}  cxb5 {[%clk 0:01:10]} 25. Kh2 {[%clk 0:01:34]}  Bd4 {[%clk 0:01:09]} 26. f3 {[%clk 0:01:27]}  Qg6 {[%clk 0:01:03]} 27. fxg4 {[%clk 0:00:55]}  hxg4 {[%clk 0:00:13]} 28. Nc4 {[%clk 0:00:51]} 1-0


[Site "https://www.chess.com"]

[Event "Titled Tuesday Blitz July 25 Late 2023"]
[White "Ganiev, Roman"]
[Black "Duarte, Leonardo"]
[WhiteFideId "4131452"]
[BlackFideId "110582"]
[WhiteElo "2518"]
[BlackElo "2335"]
[Result "0-1"]
[Round "5"]
[TimeControl "180+2"]
[Date "2023.07.25"]
[WhiteClock "0:00:11"]
[BlackClock "0:00:03"]
[Board "122"]

1. e4 {[%clk 0:03:00]}  e5 {[%clk 0:02:55]} 2. d4 {[%clk 0:03:00]}  exd4 {[%clk 0:02:54]} 3. Qxd4 {[%clk 0:03:01]}  Nc6 {[%clk 0:02:50]} 4. Qe3 {[%clk 0:03:01]}  Nf6 {[%clk 0:02:50]} 5. Nc3 {[%clk 0:03:02]}  Bb4 {[%clk 0:02:50]} 6. Bd2 {[%clk 0:03:02]}  d6 {[%clk 0:02:46]} 7. O-O-O {[%clk 0:03:02]}  Be6 {[%clk 0:02:44]} 8. a3 {[%clk 0:03:01]}  Ba5 {[%clk 0:02:41]} 9. f4 {[%clk 0:03:01]}  Qe7 {[%clk 0:02:24]} 10. Bb5 {[%clk 0:02:54]}  Bd7 {[%clk 0:02:21]} 11. Nf3 {[%clk 0:02:52]}  O-O-O {[%clk 0:02:06]} 12. Rhe1 {[%clk 0:02:31]}  Bb6 {[%clk 0:01:55]} 13. Qd3 {[%clk 0:02:30]}  Ng4 {[%clk 0:01:50]} 14. Nd5 {[%clk 0:02:27]}  Qe8 {[%clk 0:01:49]} 15. Nxb6+ {[%clk 0:02:24]}  axb6 {[%clk 0:01:50]} 16. Qf1 {[%clk 0:02:24]}  Na5 {[%clk 0:01:38]} 17. Bd3 {[%clk 0:02:20]}  Kb8 {[%clk 0:01:25]} 18. h3 {[%clk 0:02:13]}  Nf6 {[%clk 0:01:19]} 19. e5 {[%clk 0:02:14]}  dxe5 {[%clk 0:01:19]} 20. Nxe5 {[%clk 0:02:14]}  Qe6 {[%clk 0:01:03]} 21. Bxa5 {[%clk 0:02:03]}  bxa5 {[%clk 0:00:56]} 22. Bc4 {[%clk 0:02:03]}  Qb6 {[%clk 0:00:45]} 23. Nxf7 {[%clk 0:02:02]}  Rdf8 {[%clk 0:00:35]} 24. Nxh8 {[%clk 0:01:57]}  Rxh8 {[%clk 0:00:36]} 25. g4 {[%clk 0:01:54]}  Bc6 {[%clk 0:00:36]} 26. Qg1 {[%clk 0:01:49]}  Qxg1 {[%clk 0:00:27]} 27. Rxg1 {[%clk 0:01:50]}  Ne4 {[%clk 0:00:27]} 28. Rge1 {[%clk 0:01:47]}  Nf2 {[%clk 0:00:27]} 29. Rd4 {[%clk 0:01:40]}  Nxh3 {[%clk 0:00:27]} 30. Re7 {[%clk 0:01:33]}  g6 {[%clk 0:00:22]} 31. f5 {[%clk 0:01:33]}  gxf5 {[%clk 0:00:20]} 32. gxf5 {[%clk 0:01:34]}  Rf8 {[%clk 0:00:20]} 33. Be6 {[%clk 0:01:31]}  h5 {[%clk 0:00:20]} 34. Rh4 {[%clk 0:01:30]}  Nf2 {[%clk 0:00:17]} 35. Rxh5 {[%clk 0:01:26]}  Rd8 {[%clk 0:00:05]} 36. b3 {[%clk 0:01:26]}  Rd1+ {[%clk 0:00:06]} 37. Kb2 {[%clk 0:01:26]}  Rd2 {[%clk 0:00:07]} 38. f6 {[%clk 0:01:19]}  Be4 {[%clk 0:00:07]} 39. Bf5 {[%clk 0:01:19]}  Rxc2+ {[%clk 0:00:05]} 40. Kb1 {[%clk 0:01:13]}  Nd3 {[%clk 0:00:05]} 41. a4 {[%clk 0:00:45]}  Rc1+ {[%clk 0:00:04]} 42. Ka2 {[%clk 0:00:45]}  Rc2+ {[%clk 0:00:04]} 43. Ka3 {[%clk 0:00:45]}  Nb4 {[%clk 0:00:04]} 44. Bxe4 {[%clk 0:00:11]}  Ra2# {[%clk 0:00:03]} 0-1


[Site "https://www.chess.com"]

[Event "Titled Tuesday Blitz July 25 Late 2023"]
[White "Alahakoon, Isuru"]
[Black "Koc, Przemyslaw"]
[WhiteFideId "9900993"]
[BlackFideId "1109081"]
[WhiteElo "2350"]
[BlackElo "2500"]
[Result "0-1"]
[Round "5"]
[TimeControl "180+2"]
[Date "2023.07.25"]
[WhiteClock "0:00:00"]
[BlackClock "0:01:26"]
[Board "123"]

1. Nf3 {[%clk 0:02:41]}  d6 {[%clk 0:03:00]} 2. d4 {[%clk 0:02:40]}  f5 {[%clk 0:03:00]} 3. Nc3 {[%clk 0:02:37]}  Nf6 {[%clk 0:02:58]} 4. Bg5 {[%clk 0:02:37]}  Nbd7 {[%clk 0:02:58]} 5. Qd3 {[%clk 0:02:35]}  g6 {[%clk 0:02:56]} 6. h4 {[%clk 0:02:33]}  h6 {[%clk 0:02:54]} 7. Bf4 {[%clk 0:02:31]}  Bg7 {[%clk 0:02:53]} 8. e4 {[%clk 0:02:31]}  Nh5 {[%clk 0:02:32]} 9. Bh2 {[%clk 0:02:14]}  O-O {[%clk 0:02:31]} 10. exf5 {[%clk 0:02:10]}  gxf5 {[%clk 0:02:30]} 11. O-O-O {[%clk 0:02:08]}  c6 {[%clk 0:02:27]} 12. Be2 {[%clk 0:02:01]}  Nb6 {[%clk 0:02:25]} 13. Kb1 {[%clk 0:01:57]}  Nd5 {[%clk 0:02:21]} 14. Nxd5 {[%clk 0:01:19]}  cxd5 {[%clk 0:02:22]} 15. Rhe1 {[%clk 0:01:01]}  Bd7 {[%clk 0:02:17]} 16. Qb3 {[%clk 0:00:58]}  e6 {[%clk 0:02:16]} 17. c4 {[%clk 0:00:56]}  dxc4 {[%clk 0:02:10]} 18. Bxc4 {[%clk 0:00:55]}  d5 {[%clk 0:02:10]} 19. Be2 {[%clk 0:00:38]}  Qb6 {[%clk 0:02:05]} 20. Qxb6 {[%clk 0:00:35]}  axb6 {[%clk 0:02:06]} 21. Ne5 {[%clk 0:00:34]}  Be8 {[%clk 0:02:03]} 22. f3 {[%clk 0:00:30]}  f4 {[%clk 0:01:58]} 23. g4 {[%clk 0:00:28]}  fxg3 {[%clk 0:01:58]} 24. Bxg3 {[%clk 0:00:29]}  Nxg3 {[%clk 0:01:56]} 25. Bd3 {[%clk 0:00:19]}  Bxe5 {[%clk 0:01:53]} 26. dxe5 {[%clk 0:00:20]}  Rxf3 {[%clk 0:01:51]} 27. Rg1 {[%clk 0:00:19]}  Kh8 {[%clk 0:01:49]} 28. Bc2 {[%clk 0:00:12]}  Bb5 {[%clk 0:01:42]} 29. Rd4 {[%clk 0:00:11]}  Ne2 {[%clk 0:01:29]} 30. Rg6 {[%clk 0:00:00]}  Nxd4 {[%clk 0:01:26]} 0-1


[Site "https://www.chess.com"]

[Event "Titled Tuesday Blitz July 25 Late 2023"]
[White "Machidon, Cristi"]
[Black "Zanette, Edgard Vinicius"]
[WhiteFideId "13904590"]
[BlackFideId "2109263"]
[WhiteElo "2500"]
[BlackElo "2332"]
[Result "1-0"]
[Round "5"]
[TimeControl "180+2"]
[Date "2023.07.25"]
[WhiteClock "0:01:03"]
[BlackClock "0:00:52"]
[Board "124"]

1. d4 {[%clk 0:02:34]}  Nf6 {[%clk 0:02:59]} 2. c4 {[%clk 0:02:34]}  e6 {[%clk 0:02:58]} 3. Nf3 {[%clk 0:02:33]}  d5 {[%clk 0:02:57]} 4. Nc3 {[%clk 0:02:33]}  Bb4 {[%clk 0:02:56]} 5. e3 {[%clk 0:02:31]}  O-O {[%clk 0:02:53]} 6. Bd2 {[%clk 0:02:28]}  b6 {[%clk 0:02:51]} 7. cxd5 {[%clk 0:02:27]}  exd5 {[%clk 0:02:51]} 8. Bd3 {[%clk 0:02:28]}  Ba6 {[%clk 0:02:44]} 9. Bxa6 {[%clk 0:02:25]}  Nxa6 {[%clk 0:02:44]} 10. O-O {[%clk 0:02:26]}  Bxc3 {[%clk 0:02:34]} 11. Bxc3 {[%clk 0:02:25]}  Ne4 {[%clk 0:02:33]} 12. Rc1 {[%clk 0:02:25]}  c5 {[%clk 0:02:33]} 13. dxc5 {[%clk 0:02:17]}  Nxc3 {[%clk 0:02:26]} 14. Rxc3 {[%clk 0:02:17]}  Nxc5 {[%clk 0:02:25]} 15. Qd4 {[%clk 0:02:09]}  Qd6 {[%clk 0:02:17]} 16. Rd1 {[%clk 0:02:04]}  Rad8 {[%clk 0:02:15]} 17. b4 {[%clk 0:01:42]}  Ne6 {[%clk 0:02:10]} 18. Qh4 {[%clk 0:01:40]}  h6 {[%clk 0:02:06]} 19. Rcd3 {[%clk 0:01:36]}  Qc6 {[%clk 0:01:45]} 20. a3 {[%clk 0:01:24]}  Rd6 {[%clk 0:01:38]} 21. Ne5 {[%clk 0:01:18]}  Qa4 {[%clk 0:01:36]} 22. f4 {[%clk 0:01:05]}  Rc8 {[%clk 0:00:52]} 23. Qe7 {[%clk 0:01:03]} 1-0


[Site "https://www.chess.com"]

[Event "Titled Tuesday Blitz July 25 Late 2023"]
[White "D`Arruda, Ricardo D."]
[Black "AndresDelgado77"]
[WhiteFideId "100692"]
[WhiteElo "2496"]
[BlackElo "2320"]
[Result "0-1"]
[Round "5"]
[TimeControl "180+2"]
[Date "2023.07.25"]
[WhiteClock "0:00:44"]
[BlackClock "0:00:24"]
[Board "125"]

1. Nf3 {[%clk 0:03:00]}  d5 {[%clk 0:02:57]} 2. d3 {[%clk 0:03:00]}  Bf5 {[%clk 0:02:50]} 3. g3 {[%clk 0:03:00]}  h6 {[%clk 0:02:49]} 4. Bg2 {[%clk 0:03:01]}  Nf6 {[%clk 0:02:49]} 5. O-O {[%clk 0:03:01]}  c6 {[%clk 0:02:49]} 6. c4 {[%clk 0:03:00]}  e6 {[%clk 0:02:48]} 7. b3 {[%clk 0:02:59]}  Nbd7 {[%clk 0:02:47]} 8. Bb2 {[%clk 0:02:59]}  Be7 {[%clk 0:02:46]} 9. Nc3 {[%clk 0:02:59]}  O-O {[%clk 0:02:45]} 10. Qc2 {[%clk 0:02:57]}  Bh7 {[%clk 0:02:43]} 11. Rfe1 {[%clk 0:02:53]}  a5 {[%clk 0:02:40]} 12. e4 {[%clk 0:02:51]}  Nc5 {[%clk 0:02:33]} 13. Rad1 {[%clk 0:02:50]}  Qb6 {[%clk 0:02:20]} 14. exd5 {[%clk 0:02:31]}  cxd5 {[%clk 0:02:17]} 15. cxd5 {[%clk 0:02:31]}  Rfc8 {[%clk 0:02:14]} 16. dxe6 {[%clk 0:02:28]}  Nxe6 {[%clk 0:02:13]} 17. Qe2 {[%clk 0:02:23]}  Bb4 {[%clk 0:02:11]} 18. Na4 {[%clk 0:02:21]}  Qd8 {[%clk 0:02:03]} 19. Rf1 {[%clk 0:02:21]}  b5 {[%clk 0:01:56]} 20. Bxf6 {[%clk 0:02:14]}  gxf6 {[%clk 0:01:55]} 21. Nb2 {[%clk 0:02:13]}  Ra6 {[%clk 0:01:40]} 22. Nh4 {[%clk 0:02:07]}  Nd4 {[%clk 0:01:37]} 23. Qh5 {[%clk 0:02:06]}  Rc5 {[%clk 0:01:32]} 24. Qxh6 {[%clk 0:02:03]}  Rg5 {[%clk 0:01:29]} 25. f4 {[%clk 0:01:52]}  Bf8 {[%clk 0:01:22]} 26. fxg5 {[%clk 0:01:44]}  Bxh6 {[%clk 0:01:21]} 27. gxh6 {[%clk 0:01:45]}  Nc2 {[%clk 0:01:14]} 28. Rf4 {[%clk 0:01:25]}  Ne3 {[%clk 0:01:07]} 29. Rd2 {[%clk 0:01:25]}  Nxg2 {[%clk 0:00:57]} 30. Kxg2 {[%clk 0:01:26]}  Re6 {[%clk 0:00:55]} 31. Nd1 {[%clk 0:01:22]}  Bxd3 {[%clk 0:00:49]} 32. Nf2 {[%clk 0:01:21]}  Qa8+ {[%clk 0:00:48]} 33. Nf3 {[%clk 0:01:20]}  Be2 {[%clk 0:00:45]} 34. Ng4 {[%clk 0:01:18]}  Bxf3+ {[%clk 0:00:30]} 35. Rxf3 {[%clk 0:01:18]}  f5 {[%clk 0:00:30]} 36. Nf2 {[%clk 0:01:03]}  Re3 {[%clk 0:00:29]} 37. Rd8+ {[%clk 0:00:58]}  Qxd8 {[%clk 0:00:29]} 38. Rxe3 {[%clk 0:00:59]}  Qd5+ {[%clk 0:00:28]} 39. Kg1 {[%clk 0:00:49]}  Qd2 {[%clk 0:00:26]} 40. Rf3 {[%clk 0:00:49]}  Qxa2 {[%clk 0:00:25]} 41. Rxf5 {[%clk 0:00:44]}  Qb1+ {[%clk 0:00:24]} 0-1


[Site "https://www.chess.com"]

[Event "Titled Tuesday Blitz July 25 Late 2023"]
[White "Mohamed Saeed Laily"]
[Black "slidingknight2775"]
[WhiteFideId "9314946"]
[WhiteElo "2279"]
[BlackElo "2482"]
[Result "0-1"]
[Round "5"]
[TimeControl "180+2"]
[Date "2023.07.25"]
[WhiteClock "0:00:00"]
[BlackClock "0:00:04"]
[Board "126"]

1. d4 {[%clk 0:03:00]}  Nf6 {[%clk 0:02:59]} 2. Bg5 {[%clk 0:02:59]}  d5 {[%clk 0:02:58]} 3. e3 {[%clk 0:02:58]}  c5 {[%clk 0:02:57]} 4. Bxf6 {[%clk 0:02:39]}  gxf6 {[%clk 0:02:56]} 5. dxc5 {[%clk 0:02:39]}  e6 {[%clk 0:02:38]} 6. c3 {[%clk 0:02:38]}  Bxc5 {[%clk 0:02:36]} 7. Nd2 {[%clk 0:02:37]}  Nc6 {[%clk 0:02:25]} 8. Bd3 {[%clk 0:02:29]}  f5 {[%clk 0:02:22]} 9. Ne2 {[%clk 0:02:15]}  O-O {[%clk 0:02:08]} 10. Ng3 {[%clk 0:02:12]}  Kh8 {[%clk 0:01:57]} 11. Qh5 {[%clk 0:01:50]}  Qf6 {[%clk 0:01:56]} 12. h4 {[%clk 0:01:34]}  Ne5 {[%clk 0:01:45]} 13. Bc2 {[%clk 0:01:29]}  Rg8 {[%clk 0:01:19]} 14. Nf3 {[%clk 0:00:52]}  Ng4 {[%clk 0:00:43]} 15. Ng5 {[%clk 0:00:43]}  Rg7 {[%clk 0:00:31]} 16. Ke2 {[%clk 0:00:21]}  Kg8 {[%clk 0:00:30]} 17. Rad1 {[%clk 0:00:18]}  h6 {[%clk 0:00:29]} 18. Nf3 {[%clk 0:00:10]}  b6 {[%clk 0:00:27]} 19. Nf1 {[%clk 0:00:09]}  Ba6+ {[%clk 0:00:26]} 20. Ke1 {[%clk 0:00:08]}  f4 {[%clk 0:00:20]} 21. e4 {[%clk 0:00:06]}  Nxf2 {[%clk 0:00:18]} 22. e5 {[%clk 0:00:05]}  Qe7 {[%clk 0:00:11]} 23. Qxh6 {[%clk 0:00:05]}  Nxh1 {[%clk 0:00:07]} 24. Ng5 {[%clk 0:00:06]}  Bf2+ {[%clk 0:00:07]} 25. Kd2 {[%clk 0:00:05]}  Be3+ {[%clk 0:00:05]} 26. Nxe3 {[%clk 0:00:04]}  fxe3+ {[%clk 0:00:06]} 27. Kxe3 {[%clk 0:00:04]}  Kf8 {[%clk 0:00:02]} 28. Qh8+ {[%clk 0:00:04]}  Rg8 {[%clk 0:00:02]} 29. Nh7+ {[%clk 0:00:04]}  Ke8 {[%clk 0:00:03]} 30. Qxg8+ {[%clk 0:00:04]}  Kd7 {[%clk 0:00:03]} 31. Qxa8 {[%clk 0:00:02]}  Qc5+ {[%clk 0:00:04]} 32. Kd2 {[%clk 0:00:02]}  Qf2+ {[%clk 0:00:03]} 33. Kc1 {[%clk 0:00:02]}  Qe3+ {[%clk 0:00:03]} 34. Kb1 {[%clk 0:00:02]}  Nf2 {[%clk 0:00:04]} 35. Qxa7+ {[%clk 0:00:03]}  Kc6 {[%clk 0:00:04]} 36. Qa8+ {[%clk 0:00:02]}  Bb7 {[%clk 0:00:04]} 37. Qa4+ {[%clk 0:00:01]}  b5 {[%clk 0:00:04]} 38. Qa3 {[%clk 0:00:00]}  Nxd1 {[%clk 0:00:04]} 0-1


[Site "https://www.chess.com"]

[Event "Titled Tuesday Blitz July 25 Late 2023"]
[White "Jahnz, Fabian"]
[Black "SergioMoralesG"]
[WhiteFideId "4653300"]
[WhiteElo "2167"]
[BlackElo "2430"]
[Result "0-1"]
[Round "5"]
[TimeControl "180+2"]
[Date "2023.07.25"]
[WhiteClock "0:00:35"]
[BlackClock "0:00:42"]
[Board "130"]

1. e4 {[%clk 0:03:00]}  c5 {[%clk 0:02:56]} 2. Nf3 {[%clk 0:03:00]}  e6 {[%clk 0:02:56]} 3. d4 {[%clk 0:03:00]}  cxd4 {[%clk 0:02:57]} 4. Nxd4 {[%clk 0:03:00]}  Nc6 {[%clk 0:02:57]} 5. c4 {[%clk 0:03:00]}  Nf6 {[%clk 0:02:54]} 6. Nc3 {[%clk 0:03:00]}  Bb4 {[%clk 0:02:54]} 7. Nxc6 {[%clk 0:02:59]}  bxc6 {[%clk 0:02:54]} 8. Bd3 {[%clk 0:02:59]}  e5 {[%clk 0:02:53]} 9. O-O {[%clk 0:02:59]}  Bc5 {[%clk 0:02:53]} 10. a3 {[%clk 0:02:57]}  a5 {[%clk 0:02:50]} 11. Bg5 {[%clk 0:02:56]}  h6 {[%clk 0:02:48]} 12. Bh4 {[%clk 0:02:56]}  d6 {[%clk 0:02:42]} 13. Rb1 {[%clk 0:02:55]}  O-O {[%clk 0:02:27]} 14. b4 {[%clk 0:02:55]}  axb4 {[%clk 0:02:27]} 15. axb4 {[%clk 0:02:56]}  Bd4 {[%clk 0:02:28]} 16. Ne2 {[%clk 0:02:54]}  Bg4 {[%clk 0:02:27]} 17. Qd2 {[%clk 0:02:50]}  Bxe2 {[%clk 0:02:20]} 18. Qxe2 {[%clk 0:02:51]}  g5 {[%clk 0:02:10]} 19. Bg3 {[%clk 0:02:50]}  Qd7 {[%clk 0:02:06]} 20. h4 {[%clk 0:02:48]}  Qg4 {[%clk 0:02:01]} 21. Qxg4 {[%clk 0:02:37]}  Nxg4 {[%clk 0:02:02]} 22. hxg5 {[%clk 0:02:35]}  hxg5 {[%clk 0:02:01]} 23. Be2 {[%clk 0:02:31]}  Nf6 {[%clk 0:01:54]} 24. Bd3 {[%clk 0:02:05]}  Nd7 {[%clk 0:01:44]} 25. Rfd1 {[%clk 0:02:03]}  Ra2 {[%clk 0:01:32]} 26. b5 {[%clk 0:01:56]}  cxb5 {[%clk 0:01:30]} 27. cxb5 {[%clk 0:01:57]}  Nb6 {[%clk 0:01:21]} 28. Rdc1 {[%clk 0:01:37]}  Rc8 {[%clk 0:01:19]} 29. Rxc8+ {[%clk 0:01:36]}  Nxc8 {[%clk 0:01:20]} 30. Rc1 {[%clk 0:01:31]}  Nb6 {[%clk 0:01:18]} 31. Rc2 {[%clk 0:01:27]}  Ra3 {[%clk 0:01:09]} 32. Be2 {[%clk 0:01:16]}  Rxg3 {[%clk 0:01:08]} 33. Rc7 {[%clk 0:01:00]}  Rc3 {[%clk 0:01:01]} 34. Rb7 {[%clk 0:00:55]}  Rc1+ {[%clk 0:00:58]} 35. Bf1 {[%clk 0:00:55]}  Kg7 {[%clk 0:00:44]} 36. Rb8 {[%clk 0:00:49]}  Rc2 {[%clk 0:00:43]} 37. Rd8 {[%clk 0:00:46]}  Bxf2+ {[%clk 0:00:42]} 38. Kh1 {[%clk 0:00:46]}  Bc5 {[%clk 0:00:43]} 39. Bd3 {[%clk 0:00:35]}  Rd2 {[%clk 0:00:42]} 0-1


[Site "https://www.chess.com"]

[Event "Titled Tuesday Blitz July 25 Late 2023"]
[White "Hamidi, Amir Mohammad"]
[Black "Kujawski, Adam"]
[WhiteFideId "12563285"]
[BlackFideId "1100920"]
[WhiteElo "2767"]
[BlackElo "2327"]
[Result "1-0"]
[Round "5"]
[TimeControl "180+2"]
[Date "2023.07.25"]
[WhiteClock "0:01:29"]
[BlackClock "0:00:00"]
[Board "132"]

1. e4 {[%clk 0:03:00]}  e5 {[%clk 0:02:59]} 2. Nc3 {[%clk 0:02:59]}  Nf6 {[%clk 0:02:59]} 3. g3 {[%clk 0:02:56]}  h5 {[%clk 0:02:48]} 4. h3 {[%clk 0:02:53]}  Bc5 {[%clk 0:02:44]} 5. Bg2 {[%clk 0:02:51]}  d6 {[%clk 0:02:43]} 6. Nge2 {[%clk 0:02:47]}  Nc6 {[%clk 0:02:42]} 7. Na4 {[%clk 0:02:45]}  Be6 {[%clk 0:02:28]} 8. Nxc5 {[%clk 0:02:43]}  dxc5 {[%clk 0:02:27]} 9. d3 {[%clk 0:02:43]}  c4 {[%clk 0:02:11]} 10. Be3 {[%clk 0:02:32]}  cxd3 {[%clk 0:01:58]} 11. cxd3 {[%clk 0:02:33]}  Qd7 {[%clk 0:01:49]} 12. d4 {[%clk 0:02:27]}  exd4 {[%clk 0:01:37]} 13. Nxd4 {[%clk 0:02:28]}  O-O-O {[%clk 0:01:21]} 14. Nxe6 {[%clk 0:02:26]}  Qxe6 {[%clk 0:01:18]} 15. Qa4 {[%clk 0:02:26]}  Rhe8 {[%clk 0:00:33]} 16. O-O {[%clk 0:02:22]}  Nxe4 {[%clk 0:00:31]} 17. Bxa7 {[%clk 0:02:06]}  Nd2 {[%clk 0:00:20]} 18. Rfd1 {[%clk 0:02:02]}  Qc4 {[%clk 0:00:11]} 19. Qa3 {[%clk 0:01:51]}  Re2 {[%clk 0:00:04]} 20. Be3 {[%clk 0:01:44]}  Rd3 {[%clk 0:00:02]} 21. Qa8+ {[%clk 0:01:37]}  Kd7 {[%clk 0:00:00]} 22. Rac1 {[%clk 0:01:29]} 1-0


[Site "https://www.chess.com"]

[Event "Titled Tuesday Blitz July 25 Late 2023"]
[White "Papp, Petra"]
[Black "Aggelis, Nikolaos"]
[WhiteFideId "739049"]
[BlackFideId "4213220"]
[WhiteElo "2325"]
[BlackElo "2599"]
[Result "0-1"]
[Round "5"]
[TimeControl "180+2"]
[Date "2023.07.25"]
[WhiteClock "0:00:00"]
[BlackClock "0:00:09"]
[Board "133"]

1. d4 {[%clk 0:02:59]}  f5 {[%clk 0:02:58]} 2. g3 {[%clk 0:02:40]}  Nf6 {[%clk 0:02:59]} 3. Bg2 {[%clk 0:02:39]}  g6 {[%clk 0:02:57]} 4. Nh3 {[%clk 0:02:39]}  Bg7 {[%clk 0:02:56]} 5. c4 {[%clk 0:02:38]}  O-O {[%clk 0:02:57]} 6. Nc3 {[%clk 0:02:38]}  d6 {[%clk 0:02:57]} 7. d5 {[%clk 0:02:35]}  Na6 {[%clk 0:02:47]} 8. Nf4 {[%clk 0:02:34]}  Nc5 {[%clk 0:02:39]} 9. Be3 {[%clk 0:02:33]}  e5 {[%clk 0:02:24]} 10. dxe6 {[%clk 0:02:31]}  Nxe6 {[%clk 0:02:20]} 11. Nfd5 {[%clk 0:02:24]}  c6 {[%clk 0:02:07]} 12. Nxf6+ {[%clk 0:02:20]}  Bxf6 {[%clk 0:02:08]} 13. O-O {[%clk 0:02:20]}  Qc7 {[%clk 0:01:42]} 14. Qd2 {[%clk 0:02:19]}  Rd8 {[%clk 0:01:27]} 15. Rfd1 {[%clk 0:02:17]}  Nc5 {[%clk 0:01:24]} 16. Rac1 {[%clk 0:02:15]}  Be6 {[%clk 0:01:21]} 17. b4 {[%clk 0:02:14]}  Na6 {[%clk 0:01:01]} 18. Nd5 {[%clk 0:02:13]}  Bxd5 {[%clk 0:00:50]} 19. cxd5 {[%clk 0:02:13]}  c5 {[%clk 0:00:48]} 20. a4 {[%clk 0:02:00]}  Rac8 {[%clk 0:00:29]} 21. b5 {[%clk 0:01:59]}  Nb8 {[%clk 0:00:27]} 22. Qa2 {[%clk 0:02:00]}  Nd7 {[%clk 0:00:26]} 23. a5 {[%clk 0:01:58]}  b6 {[%clk 0:00:24]} 24. Rd3 {[%clk 0:01:49]}  Ne5 {[%clk 0:00:24]} 25. Ra3 {[%clk 0:01:48]}  Ng4 {[%clk 0:00:23]} 26. axb6 {[%clk 0:01:43]}  Qxb6 {[%clk 0:00:20]} 27. Ra6 {[%clk 0:01:40]}  Qxb5 {[%clk 0:00:20]} 28. Rb1 {[%clk 0:01:35]}  Qe8 {[%clk 0:00:20]} 29. Bf4 {[%clk 0:01:30]}  c4 {[%clk 0:00:18]} 30. h3 {[%clk 0:01:22]}  Ne5 {[%clk 0:00:15]} 31. Rxa7 {[%clk 0:01:22]}  c3 {[%clk 0:00:14]} 32. Qc2 {[%clk 0:01:20]}  Nc4 {[%clk 0:00:13]} 33. Rbb7 {[%clk 0:01:17]}  Bd4 {[%clk 0:00:09]} 34. Bh6 {[%clk 0:01:11]}  Bxa7 {[%clk 0:00:08]} 35. Rxa7 {[%clk 0:01:09]}  Qe5 {[%clk 0:00:08]} 36. Bg7 {[%clk 0:01:04]}  Na3 {[%clk 0:00:05]} 37. Qc1 {[%clk 0:00:47]}  Qxg7 {[%clk 0:00:04]} 38. Rxg7+ {[%clk 0:00:46]}  Kxg7 {[%clk 0:00:05]} 39. Qxa3 {[%clk 0:00:45]}  c2 {[%clk 0:00:06]} 40. Qc1 {[%clk 0:00:45]}  Rd7 {[%clk 0:00:06]} 41. e4 {[%clk 0:00:02]}  Rb7 {[%clk 0:00:07]} 42. Qa1+ {[%clk 0:00:03]}  Kg8 {[%clk 0:00:05]} 43. Qf6 {[%clk 0:00:02]}  c1=Q+ {[%clk 0:00:04]} 44. Kh2 {[%clk 0:00:03]}  Qc7 {[%clk 0:00:04]} 45. exf5 {[%clk 0:00:02]}  Qf7 {[%clk 0:00:04]} 46. Qg5 {[%clk 0:00:02]}  Qxf5 {[%clk 0:00:03]} 47. Qe3 {[%clk 0:00:02]}  Qf7 {[%clk 0:00:04]} 48. Be4 {[%clk 0:00:02]}  Re7 {[%clk 0:00:04]} 49. Qd4 {[%clk 0:00:02]}  Rf8 {[%clk 0:00:05]} 50. Bg2 {[%clk 0:00:02]}  Qf6 {[%clk 0:00:05]} 51. Qg4 {[%clk 0:00:03]}  Qxf2 {[%clk 0:00:05]} 52. Qh4 {[%clk 0:00:03]}  Qf6 {[%clk 0:00:06]} 53. Qg4 {[%clk 0:00:03]}  Re5 {[%clk 0:00:07]} 54. h4 {[%clk 0:00:03]}  Qf5 {[%clk 0:00:08]} 55. Qd1 {[%clk 0:00:03]}  Re3 {[%clk 0:00:08]} 56. Qd4 {[%clk 0:00:01]}  Qe5 {[%clk 0:00:09]} 57. Qg4 {[%clk 0:00:01]}  Kh8 {[%clk 0:00:08]} 58. Kh1 {[%clk 0:00:01]}  Rxg3 {[%clk 0:00:07]} 59. Qd1 {[%clk 0:00:01]}  Re3 {[%clk 0:00:08]} 60. Qf1 {[%clk 0:00:00]}  Re1 {[%clk 0:00:09]} 0-1


[Site "https://www.chess.com"]